{"text_format":"3","workbook":"xlsx","n_sheets":3,"sheets":["국외수학 학점인정 체크리스트 양식","(참고) 국외수학 학점인정 변환표 가이드라인","Sheet1"],"not_rendered":{"defined_names":1,"comments":1},"read":"whole","date_system":"1900"}

{"sheet":"국외수학 학점인정 체크리스트 양식","index":0,"n_rows":100,"n_cols":22,"rows_kept":100,"merged":[[1,0,2,0],[1,1,2,1],[1,2,2,2],[1,3,2,3],[1,4,2,4],[1,5,2,5],[1,6,2,6],[1,7,1,11],[1,12,1,14],[1,15,1,17],[1,18,1,19],[1,20,2,20],[1,21,2,21]]}
["(붙임2) 국외수학 학점인정 체크리스트"]
["단과대학(원)","학과(부)","전공","학번","이름 ","학점취득\n대학교","수학학기","교과목 확인",{"$nulls":4},"(1) 수업시간 기준",null,null,"(2) 변환표 기준",null,null,"성적 이관 내용",null,"비고","졸업예정자 여부"]
[{"$nulls":7},"과목명\n(국문)","과목명\n(영문)","기수강과목과 중복 여부 ","정규학위과정 여부","수업방식 \n대면/비대면","총 수업시간\n(실습, 실험의 경우 1/2으로 계산)","수업시간 산출 내역","인정학점","파견교 학점","변환율","인정학점","성적","교과구분"]
["인문대학","국어국문학과","국어국문학전공","2022-XXXXX","학사과","University of Tokyo","2021-1학기","법과 경제학","LAW AND ECONOMICS","아니오","예","대면",null,null,{"$f":"ROUNDDOWN(M4/15,0)","v":0},3,1,{"$f":"ROUND(P4*Q4,0.1)","v":3},"P","전선(복수전공)","경영학 복수전공"]
[{"$nulls":7},"미시경제이론","MICROECONOMICS","아니오","예","대면",null,null,{"$f":"ROUNDDOWN(M5/15,0)","v":0},5,0.8,{"$f":"ROUND(P5*Q5,0.1)","v":4},"B","전선(복수전공)","경영학 복수전공"]
[{"$nulls":7},"거시경제학","MACROECONOMICS","아니오","예","대면",54.5,"이론 3시간 * 15주\n실습 1시간 * 15주 * 1/2\n시험 2시간",3,null,null,0,"B+","전선(복수전공)","경영학 복수전공"]
[{"$nulls":14},0,null,null,0]
[{"$nulls":14},0,null,null,0]
[{"$nulls":14},0,null,null,0]
[{"$nulls":14},0,null,null,0]
[{"$nulls":14},0,null,null,0]
[{"$nulls":14},0,null,null,0]
[{"$nulls":14},0,null,null,0]
[{"$nulls":14},0,null,null,0]
[{"$nulls":14},0,null,null,0]
[{"$nulls":14},0,null,null,0]
[{"$nulls":14},0,null,null,0]
[{"$nulls":14},0,null,null,0]
[{"$nulls":14},0,null,null,0]
[{"$nulls":14},0,null,null,0]
[{"$nulls":14},0,null,null,0]
[{"$nulls":14},0,null,null,0]
[{"$nulls":14},0,null,null,0]
[{"$nulls":14},0,null,null,0]
[{"$nulls":14},0,null,null,0]
[{"$nulls":14},0,null,null,0]
[{"$nulls":14},0,null,null,0]
[{"$nulls":14},0,null,null,0]
[{"$nulls":14},0,null,null,0]
[{"$nulls":14},0,null,null,0]
[{"$nulls":14},0,null,null,0]
[{"$nulls":14},0,null,null,0]
[{"$nulls":14},0,null,null,0]
[{"$nulls":14},0,null,null,0]
[{"$nulls":14},0,null,null,0]
[{"$nulls":14},0,null,null,0]
[{"$nulls":14},0,null,null,0]
[{"$nulls":14},0,null,null,0]
[{"$nulls":14},0,null,null,0]
[{"$nulls":14},0,null,null,0]
[{"$nulls":14},0,null,null,0]
[{"$nulls":14},0,null,null,0]
[{"$nulls":14},0,null,null,0]
[{"$nulls":14},0,null,null,0]
[{"$nulls":14},0,null,null,0]
[{"$nulls":14},0,null,null,0]
[{"$nulls":14},0,null,null,0]
[{"$nulls":14},0,null,null,0]
[{"$nulls":14},0,null,null,0]
[{"$nulls":14},0,null,null,0]
[{"$nulls":14},0,null,null,0]
[{"$nulls":14},0,null,null,0]
[{"$nulls":14},0,null,null,0]
[{"$nulls":14},0,null,null,0]
[{"$nulls":14},0,null,null,0]
[{"$nulls":14},0,null,null,0]
[{"$nulls":14},0,null,null,0]
[{"$nulls":14},0,null,null,0]
[{"$nulls":14},0,null,null,0]
[{"$nulls":14},0,null,null,0]
[{"$nulls":14},0,null,null,0]
[{"$nulls":14},0,null,null,0]
[{"$nulls":14},0,null,null,0]
[{"$nulls":14},0,null,null,0]
[{"$nulls":14},0,null,null,0]
[{"$nulls":14},0,null,null,0]
[{"$nulls":14},0,null,null,0]
[{"$nulls":14},0,null,null,0]
[{"$nulls":14},{"$f":"ROUNDDOWN(M69/15,0)","v":0},null,null,{"$f":"ROUND(P69*Q69,0.1)","v":0}]
[{"$nulls":14},0,null,null,0]
[{"$nulls":14},0,null,null,0]
[{"$nulls":14},0,null,null,0]
[{"$nulls":14},0,null,null,0]
[{"$nulls":14},0,null,null,0]
[{"$nulls":14},0,null,null,0]
[{"$nulls":14},0,null,null,0]
[{"$nulls":14},0,null,null,0]
[{"$nulls":14},0,null,null,0]
[{"$nulls":14},0,null,null,0]
[{"$nulls":14},0,null,null,0]
[{"$nulls":14},0,null,null,0]
[{"$nulls":14},0,null,null,0]
[{"$nulls":14},0,null,null,0]
[{"$nulls":14},0,null,null,0]
[{"$nulls":14},0,null,null,0]
[{"$nulls":14},0,null,null,0]
[{"$nulls":14},0,null,null,0]
[{"$nulls":14},0,null,null,0]
[{"$nulls":14},0,null,null,0]
[{"$nulls":14},0,null,null,0]
[{"$nulls":14},0,null,null,0]
[{"$nulls":14},0,null,null,0]
[{"$nulls":14},0,null,null,0]
[{"$nulls":14},0,null,null,0]
[{"$nulls":14},0,null,null,0]
[{"$nulls":14},0,null,null,0]
[{"$nulls":14},0,null,null,0]
[{"$nulls":14},0,null,null,0]
[{"$nulls":14},0,null,null,0]
[{"$nulls":14},0,null,null,0]

{"sheet":"(참고) 국외수학 학점인정 변환표 가이드라인","index":1,"n_rows":226,"n_cols":7,"rows_kept":226}
["(참고) 국외수학 학점인정 변환표 가이드라인"]
[]
["순번","지역","국가","대학명","학기제 구분","학점 체계","학점변환비율"]
[1,"북미","미국","American University","2학기제","Credits",1]
[2,"북미","미국","Boston College","2학기제","Credits",1]
[3,"북미","미국","Drexel University","4학기제","Credits",0.8]
[4,"북미","미국","Florida State University","2학기제","Credits",1]
[5,"북미","미국","George Washington University","2학기제","Credits",1]
[6,"북미","미국","Georgia Institute of Technology","2학기제","Credits",1]
[7,"북미","미국","North Carolina State University","2학기제","Credits",1]
[8,"북미","미국","Purdue University","2학기제","Credits",1]
[9,"북미","미국","Rice University","2학기제","Credits",1]
[10,"북미","미국","Rutgers, The State University of New Jersey","2학기제","Credits",1]
[11,"북미","미국","Stony Brook University - SUNY at Stony Brook","2학기제","Credits",1]
[12,"북미","미국","University at Albany, State University of New York","2학기제","Credits",1]
[13,"북미","미국","University of Arizona","2학기제","Credits",1]
[14,"북미","미국","University of California (UC)","혼합 (System)","Quarter/Semester Credits",0.8]
[15,"북미","미국","University of California, Santa Cruz","3학기제","Credits",0.8]
[16,"북미","미국","University of Hawaii at Manoa","2학기제","Credits",1]
[17,"북미","미국","University of Kentucky","2학기제","Credits",1]
[18,"북미","미국","University of Maryland","2학기제","Credits",1]
[19,"북미","미국","University of Missouri, Columbia","2학기제","Credits",1]
[20,"북미","미국","University of Nebraska at Kearney","2학기제","Credits",1]
[21,"북미","미국","University of North Carolina at Chapel Hill","2학기제","Credits",1]
[22,"북미","미국","University of North Texas","2학기제","Credits",1]
[23,"북미","미국","University of Oklahoma","2학기제","Credits",1]
[24,"북미","미국","University of Oregon","3학기제","Credits",0.8]
[25,"북미","미국","University of Pennsylvania","2학기제","Course Units (CUs)",4]
[26,"북미","미국","University of Pittsburgh","2학기제","Credits",1]
[27,"북미","미국","University of Rochester","2학기제","Credits",1]
[28,"북미","미국","University of Texas at Austin","2학기제","Credits",1]
[29,"북미","미국","University of Utah","2학기제","Credits",1]
[30,"북미","미국","University of Virginia","2학기제","Credits",1]
[31,"북미","미국","University of Washington","3학기제","Credits",0.8]
[32,"북미","미국","Wellesley College","2학기제","Units",4]
[33,"북미","미국","Wesleyan University","2학기제","Credits",4]
[34,"북미","미국","Western Michigan University","2학기제","Credits",1]
[35,"북미","캐나다","Montreal University (Université de Montréal)","2학기제","Credits",1]
[36,"북미","캐나다","Simon Fraser University","3학기제","Units",1]
[37,"북미","캐나다","University of Alberta","2학기제","Credits",1]
[38,"북미","캐나다","University of British Columbia (UBC)","2학기제","Credits",1]
[39,"북미","캐나다","University of Calgary","2학기제","Units",1]
[40,"북미","캐나다","University of Toronto","2학기제","FCE(Full Course Equivalents)",6]
[41,"북미","캐나다","University of Waterloo","3학기제","FCE(Full Course Equivalents)",6]
[42,"북미","캐나다","Western University (University of Western Ontario)","2학기제","FCE(Full Course Equivalents)",6]
[43,"북미","캐나다","Wilfrid Laurier University","2학기제 (선택 3학기)","FCE(Full Course Equivalents)",6]
[44,"아시아","대만","National Cheng Kung Universtiy","2학기제","Credits",1]
[45,"아시아","대만","National Chengchi University","2학기제","Credits",1]
[46,"아시아","대만","National Sun Yat-sen University","2학기제","Credits",1]
[47,"아시아","대만","National Taiwan University (NTU, Taiwan)","2학기제","Credits",1]
[48,"아시아","대만","National Tsing Hua University","2학기제","Credits",1]
[49,"아시아","대만","National University of Kaohsiung","2학기제","Credits",1]
[50,"아시아","대만","National Yang Ming Chiao Tung University","2학기제","Credits",1]
[51,"아시아","말레이시아","University of Malaya","2학기제","Credits",1]
[52,"아시아","몽골","National University of Mongolia","2학기제","Credits",1]
[53,"아시아","베트남","Foreign Trade University","2학기제","Credits (Tin chi)",1]
[54,"아시아","베트남","Vietnam National University, Hanoi","2학기제","Credits (Tin chi)",1]
[55,"아시아","브루나이","Universiti Brunei Darussalam (UBD)","2학기제","Modular Credits (MCs)",1]
[56,"아시아","싱가포르","Nanyang Technological University, Singapore (NTU Singapore)","2학기제","Units",1]
[57,"아시아","싱가포르","National University of Singapore (NUS)","2학기제","Modular Credits (MCs)",1]
[58,"아시아","싱가포르","Singapore Management University (SMU)","2학기제","Credit Units (CUs)",4]
[59,"아시아","인도","Indian Institute of Technology Madras (IITM)","2학기제","Credits",0.3]
[60,"아시아","인도네시아","University of Indonesia","2학기제","Credits",1]
[61,"아시아","일본","Akita International University","2학기제","Credits",1]
[62,"아시아","일본","Aoyama Gakuin University","2학기제","Credits",1]
[63,"아시아","일본","Chiba University","2학기제","Credits",1]
[64,"아시아","일본","Chuo University","2학기제","Credits",1]
[65,"아시아","일본","Doshisha University","2학기제","Credits",1]
[66,"아시아","일본","Hitotsubashi University","2학기제","Credits",1]
[67,"아시아","일본","Hokkaido University","2학기제","Credits",1]
[68,"아시아","일본","Keio University","2학기제","Credits",1]
[69,"아시아","일본","Kobe University","2학기제","Credits",1]
[70,"아시아","일본","Kyoto University","2학기제","Credits",1]
[71,"아시아","일본","Kyushu University","2학기제","Credits",1]
[72,"아시아","일본","Nagoya University","2학기제","Credits",1]
[73,"아시아","일본","Osaka University","2학기제","Credits",1]
[74,"아시아","일본","Sophia University","2학기제","Credits",1]
[75,"아시아","일본","Tohoku University","2학기제","Credits",1]
[76,"아시아","일본","Tokyo Institute of Technology","2학기제 (4 Quarters)","Credits",1]
[77,"아시아","일본","Tokyo University of Foreign Studies","2학기제","Credits",1]
[78,"아시아","일본","University of Tokyo","2학기제","Credits",1]
[79,"아시아","일본","Waseda University","2학기제","Credits",1]
[80,"아시아","중국","Beijing Normal University","2학기제","Credits",1]
[81,"아시아","중국","Fudan University","2학기제","Credits",1]
[82,"아시아","중국","Jilin University","2학기제","Credits",1]
[83,"아시아","중국","Minzu University of China","2학기제","Credits",1]
[84,"아시아","중국","Nanjing University","2학기제","Credits",1]
[85,"아시아","중국","Nankai University","2학기제","Credits",1]
[86,"아시아","중국","Peking University","2학기제","Credits",1]
[87,"아시아","중국","Shanghai Jiao Tong University (SJTU)","2학기제","Credits",1]
[88,"아시아","중국","Tianjin University","2학기제","Credits",1]
[89,"아시아","중국","Tsinghua University","2학기제","Credits",1]
[90,"아시아","중국","Zhejiang University","2학기제","Credits",1]
[91,"아시아","태국","Chulalongkorn University","2학기제","Credits",1]
[92,"아시아","태국","Mahidol University","2학기제","Credits",1]
[93,"아시아","튀르키예","Bogazici University","2학기제","Credits",1]
[94,"아시아","튀르키예","Koc University (Koç University)","2학기제","Credits",1]
[95,"아시아","필리핀","Ateneo de Manila University","2학기제","Units",1]
[96,"아시아","홍콩","Chinese University of Hong Kong","2학기제","Units",1]
[97,"아시아","홍콩","City University of Hong Kong","2학기제","Credits",1]
[98,"아시아","홍콩","Hong Kong Baptist University","2학기제","Units",1]
[99,"아시아","홍콩","Hong Kong Polytechnic University","2학기제","Credits",1]
[100,"아시아","홍콩","Hong Kong University of Science and Technology","2학기제","Credits",1]
[101,"아시아","홍콩","Lingnan University","2학기제","Credits",1]
[102,"아시아","홍콩","University of Hong Kong","2학기제","Credits",0.6]
[103,"오세아니아","뉴질랜드","University of Auckland","2학기제","Points",0.3]
[104,"오세아니아","뉴질랜드","Victoria University of Wellington","3학기제","Points",0.3]
[105,"오세아니아","호주","Deakin University","3학기제","Credit Points",4]
[106,"오세아니아","호주","Griffith University","3학기제","Credit Points",0.4]
[107,"오세아니아","호주","Macquarie University","2학기제","Credit Points",0.4]
[108,"오세아니아","호주","Monash University","2학기제","Credit Points",0.75]
[109,"오세아니아","호주","University of Adelaide","2학기제","Units",1.5]
[110,"오세아니아","호주","University of Melbourne","2학기제","Points",0.32]
[111,"오세아니아","호주","University of New South Wales (UNSW Sydney)","3학기제","Units of Credit (UoC)",0.75]
[112,"오세아니아","호주","University of Queensland","2학기제","Units",2.25]
[113,"오세아니아","호주","University of Sydney","2학기제","Credit Points",0.75]
[114,"오세아니아","호주","University of Western Australia","2학기제","Points",0.75]
[115,"오세아니아","호주","University of Wollongong","2학기제","Credit Points",0.75]
[116,"유럽","네덜란드","Delft University of Technology (TU Delft)","2학기제","ECTS",0.6]
[117,"유럽","네덜란드","Erasmus University Rotterdam (ESE, ESHCC, ESSB, EUC)","2학기제","ECTS",0.6]
[118,"유럽","네덜란드","Leiden University","2학기제","ECTS",0.6]
[119,"유럽","네덜란드","Maastricht University (UM) - FASoS, UCM","2학기제","ECTS",0.6]
[120,"유럽","네덜란드","University of Groningen","2학기제","ECTS",0.6]
[121,"유럽","네덜란드","University of Twente - BMS","2학기제","ECTS",0.6]
[122,"유럽","네덜란드","Vrije Universiteit Amsterdam (VU Amsterdam)","2학기제","ECTS",0.6]
[123,"유럽","네덜란드","Wageningen University & Research (WUR)","2학기제","ECTS",0.6]
[124,"유럽","노르웨이","Norwegian University of Science and Technology (NTNU)","2학기제","ECTS",0.6]
[125,"유럽","노르웨이","UiT The Arctic University of Norway (Tromsø)","2학기제","ECTS",0.6]
[126,"유럽","노르웨이","University of Bergen","2학기제","ECTS",0.6]
[127,"유럽","노르웨이","University of Oslo","2학기제","ECTS",0.6]
[128,"유럽","덴마크","Aarhus University","2학기제","ECTS",0.6]
[129,"유럽","덴마크","Technical University of Denmark (DTU)","2학기제","ECTS",0.6]
[130,"유럽","덴마크","University of Copenhagen","2학기제","ECTS",0.6]
[131,"유럽","덴마크","University of Southern Denmark (SDU)","2학기제","ECTS",0.6]
[132,"유럽","독일","Free University of Berlin (Freie Universität Berlin)","2학기제","ECTS",0.6]
[133,"유럽","독일","Friedrich-Schiller-University Jena","2학기제","ECTS",0.6]
[134,"유럽","독일","Heidelberg University (Ruprecht Karl University of Heidelberg)","2학기제","ECTS",0.6]
[135,"유럽","독일","Humboldt University of Berlin","2학기제","ECTS",0.6]
[136,"유럽","독일","Karlsruhe Institute of Technology (KIT)","2학기제","ECTS",0.6]
[137,"유럽","독일","Ludwig Maximilian University of Munich (LMU Munich)","2학기제","ECTS",0.6]
[138,"유럽","독일","Ruhr-Universität Bochum","2학기제","ECTS",0.6]
[139,"유럽","독일","RWTH Aachen University","2학기제","ECTS",0.6]
[140,"유럽","독일","Technical University of Berlin (TU Berlin)","2학기제","ECTS",0.6]
[141,"유럽","독일","Technical University of Darmstadt (TU Darmstadt)","2학기제","ECTS",0.6]
[142,"유럽","독일","Technical University of Dresden (TU Dresden)","2학기제","ECTS",0.6]
[143,"유럽","독일","Technical University of Munich (TUM)","2학기제","ECTS",0.6]
[144,"유럽","독일","University of Bonn","2학기제","ECTS",0.6]
[145,"유럽","독일","University of Cologne","2학기제","ECTS",0.6]
[146,"유럽","독일","University of Goettingen (University of Göttingen)","2학기제","ECTS",0.6]
[147,"유럽","독일","University of Hamburg","2학기제","ECTS",0.6]
[148,"유럽","독일","University of Stuttgart","2학기제","ECTS",0.6]
[149,"유럽","독일","University of Tuebingen (University of Tübingen)","2학기제","ECTS",0.6]
[150,"유럽","러시아","Far Eastern Federal University (FEFU)","2학기제","ECTS",0.6]
[151,"유럽","러시아","National Research University Higher School of Economics (HSE, Moscow)","2학기제 (4 Modules)","ECTS",0.6]
[152,"유럽","러시아","National Research University Higher School of Economics (HSE, St. Petersburg)","2학기제 (4 Modules)","ECTS",0.6]
[153,"유럽","러시아","RUDN University","2학기제","ECTS",0.6]
[154,"유럽","러시아","Saint-Petersburg State University (SPBU)","2학기제","ECTS",0.6]
[155,"유럽","리투아니아","Vilnius University","2학기제","ECTS",0.6]
[156,"유럽","리투아니아","Vytautas Magnus University (VMU)","2학기제","ECTS",0.6]
[157,"유럽","벨기에","Ghent University","2학기제","ECTS",0.6]
[158,"유럽","벨기에","KU Leuven","2학기제","ECTS",0.6]
[159,"유럽","벨기에","Vrije Universiteit Brussel (VUB)","2학기제","ECTS",0.6]
[160,"유럽","스웨덴","Chalmers University of Technology","2학기제","ECTS",0.6]
[161,"유럽","스웨덴","KTH Royal Institute of Technology","2학기제","ECTS",0.6]
[162,"유럽","스웨덴","Linkoping University (LiU) - Arts & Sciences, Science & Engineering","2학기제","ECTS",0.6]
[163,"유럽","스웨덴","Lund University","2학기제","ECTS",0.6]
[164,"유럽","스웨덴","Stockholm University","2학기제","ECTS",0.6]
[165,"유럽","스웨덴","Umea University","2학기제","ECTS",0.6]
[166,"유럽","스웨덴","University of Gothenburg","2학기제","ECTS",0.6]
[167,"유럽","스웨덴","Uppsala University","2학기제","ECTS",0.6]
[168,"유럽","스위스","Swiss Federal Institute of Technology Lausanne (EPFL)","2학기제","ECTS",0.6]
[169,"유럽","스위스","University of Basel","2학기제","ECTS",0.6]
[170,"유럽","스위스","University of Bern","2학기제","ECTS",0.6]
[171,"유럽","스위스","University of Geneva","2학기제","ECTS",0.6]
[172,"유럽","스위스","University of Zurich (UZH)","2학기제","ECTS",0.6]
[173,"유럽","스페인","Autonomous University of Barcelona - rest","2학기제","ECTS",0.6]
[174,"유럽","스페인","Autonomous University of Madrid (UAM)","2학기제","ECTS",0.6]
[175,"유럽","스페인","Pompeu Fabra University (UPF)","3학기제","ECTS",0.6]
[176,"유럽","스페인","Universitat Internacional de Catalunya (UIC Barcelona)","2학기제","ECTS",0.6]
[177,"유럽","스페인","University of Castilla-La Mancha","2학기제","ECTS",0.6]
[178,"유럽","스페인","University of Cordoba","2학기제","ECTS",0.6]
[179,"유럽","스페인","University of Malaga (UMA)","2학기제","ECTS",0.6]
[180,"유럽","스페인","University of Salamanca","2학기제","ECTS",0.6]
[181,"유럽","아일랜드","Trinity College Dublin","2학기제","ECTS",0.6]
[182,"유럽","아일랜드","University College Dublin (UCD)","3학기제","ECTS",0.6]
[183,"유럽","영국","City St George’s, University of London","3학기제","UK Credit",0.3]
[184,"유럽","영국","Durham University","3학기제","UK Credit",0.3]
[185,"유럽","영국","Newcastle University","2학기제","UK Credit",0.3]
[186,"유럽","영국","Queen Mary University of London (QMUL)","2학기제","UK Credit",0.3]
[187,"유럽","영국","SOAS University of London","3학기제","UK Credit",0.3]
[188,"유럽","영국","University College London (UCL)","3학기제","UK Credit",0.3]
[189,"유럽","영국","University of Bristol","2학기제","UK Credit",0.3]
[190,"유럽","영국","University of East Anglia (UEA)","2학기제","UK Credit",0.3]
[191,"유럽","영국","University of Edinburgh","2학기제","UK Credit",0.3]
[192,"유럽","영국","University of Glasgow","2학기제","UK Credit",0.3]
[193,"유럽","영국","University of Leeds","2학기제","UK Credit",0.3]
[194,"유럽","영국","University of Leicester","2학기제","UK Credit",0.3]
[195,"유럽","영국","University of Liverpool","2학기제","UK Credit",0.3]
[196,"유럽","영국","University of Manchester","2학기제","UK Credit",0.3]
[197,"유럽","영국","University of Reading","3학기제","UK Credit",0.3]
[198,"유럽","영국","University of Sheffield","2학기제","UK Credit",0.3]
[199,"유럽","영국","University of Southampton","2학기제","ECTS/CATS",0.6]
[200,"유럽","영국","University of Surrey","2학기제","UK Credit",0.3]
[201,"유럽","영국","University of Sussex","2학기제","UK Credit",0.3]
[202,"유럽","영국","University of Warwick","3학기제","UK Credit",0.3]
[203,"유럽","영국","University of Westminster","2학기제","UK Credit",0.3]
[204,"유럽","영국","University of York","3학기제","UK Credit",0.3]
[205,"유럽","오스트리아","Johannes Kepler University Linz (JKU)","2학기제","ECTS",0.6]
[206,"유럽","오스트리아","University of Vienna","2학기제","ECTS",0.6]
[207,"유럽","이탈리아","Ca' Foscari University of Venice","2학기제","ECTS",0.6]
[208,"유럽","이탈리아","University of Rome Tor Vergata","2학기제","ECTS",0.6]
[209,"유럽","체코","Charles University","2학기제","ECTS",0.6]
[210,"유럽","체코","Prague University of Economics and Business (VSE)","2학기제","ECTS",0.6]
[211,"유럽","프랑스","CY Cergy Paris Université","2학기제","ECTS",0.6]
[212,"유럽","프랑스","Ecole Normale Supérieure (ENS)","2학기제","ECTS",0.6]
[213,"유럽","프랑스","Ecole Polytechnique","2학기제","ECTS",0.6]
[214,"유럽","프랑스","Sciences Po (Institut d'Etudes Politiques de Paris)","2학기제","ECTS",0.6]
[215,"유럽","프랑스","Sorbonne Université","2학기제","ECTS",0.6]
[216,"유럽","프랑스","Télécom Paris","2학기제","ECTS",0.6]
[217,"유럽","프랑스","Université Paris 1 Panthéon-Sorbonne","2학기제","ECTS",0.6]
[218,"유럽","프랑스","Université Paris Cite","2학기제","ECTS",0.6]
[219,"유럽","프랑스","Université Sorbonne Paris Nord","2학기제","ECTS",0.6]
[220,"유럽","프랑스","University of Paris Saclay","2학기제","ECTS",0.6]
[221,"유럽","프랑스","University of Strasbourg (Université de Strasbourg)","2학기제","ECTS",0.6]
[222,"유럽","핀란드","University of Helsinki","2학기제 (4 Periods)","ECTS",0.6]
[223,"유럽","핀란드","University of Oulu","2학기제 (4 Periods)","ECTS",0.6]

{"sheet":"Sheet1","index":2,"n_rows":8,"n_cols":5,"rows_kept":8}
[]
["확인 여부","확인 여부","근거자료","교과구분","수업형태"]
["예","예","학사위원회 회의록","전선(주전공)","대면"]
["아니오","아니오","전공 내규","전선(복수전공)","비대면"]
["해당 없음",null,"대학 내규","전선(연합전공)","대면+비대면"]
[null,null,"대학 결정사항 별도 공문 발송","전선(부전공)"]
[null,null,"기타(사유서 등)","전선(연계전공)"]
[{"$nulls":3},"일선"]